bitfinex/quotes_ETHUSD_20250616
["timestamp","ask_amount","ask_price","bid_price","bid_amount"]
[1750042659401,0.1936,2579.0,2578.6,9.62615404]
[1750042659789,0.1936,2579.0,2578.6,16.03115404]
[1750042660216,0.1936,2579.0,2578.7,0.21665675]
[1750042660417,0.1936,2579.0,2578.8,0.21665854]
[1750042660619,0.1936,2579.0,2578.6,16.03114759]
[1750042661250,0.1936,2579.0,2578.7,0.21667026]
[1750042661455,0.1936,2579.0,2578.6,16.03114759]
[1750042662137,0.1936,2579.0,2578.7,0.21666447]
[1750042662334,0.1936,2579.0,2578.6,16.03114759]
[1750042662543,0.1936,2579.0,2578.7,0.21669853]
[1750042662713,0.1936,2579.0,2578.6,16.03114759]
[1750042662914,0.1936,2579.0,2578.7,0.21668057]
[1750042663114,0.1936,2579.0,2578.6,16.03114759]
[1750042663354,0.1936,2579.0,2578.7,0.21666534]
[1750042663552,0.1936,2579.0,2578.8,0.21660365]
[1750042663726,0.1936,2579.0,2578.6,12.15315582]
[1750042664359,0.1936,2579.0,2578.6,5.74815582]
[1750042664532,0.1936,2579.0,2578.7,6.62270735]
[1750042664729,0.1936,2579.0,2578.7,6.406]
[1750042665058,0.1936,2579.0,2578.8,0.21669642]
[1750042665229,0.1936,2579.0,2578.7,6.406]
[1750042666375,0.4592,2579.0,2578.6,0.1936]
[1750042666538,0.1936,2578.8,2578.6,6.406]
[1750042666719,0.1936,2578.8,2578.7,0.21682202]
[1750042666919,0.1936,2578.8,2578.6,6.406]
[1750042667144,0.1936,2578.8,2578.5,6.406]
[1750042671372,0.1936,2578.8,2578.4,0.1936]
[1750042671520,0.767,2578.7,2578.1,0.1936]
[1750042671728,0.2656,2579.0,2577.7,0.7562]
[1750042671729,0.767,2578.5,2577.7,0.7562]
[1750042671927,0.1936,2578.3,2577.9,0.1936]
[1750042672123,5.53425582,2578.2,2577.3,0.7562]
[1750042672425,4.76725582,2578.0,2577.0,1.684]
[1750042672681,0.1936,2577.7,2577.3,0.1936]
[1750042674339,0.1936,2577.5,2577.0,0.1936]
[1750042674542,0.1936,2577.5,2577.1,6.407]
[1750042675372,0.1936,2577.5,2577.1,6.44579972]
[1750042678648,0.767,2577.8,2577.2,0.55]
[1750042678959,0.9606,2577.8,2577.4,0.1936]
[1750042681501,0.9606,2577.8,2577.4,4.07345024]
[1750042681917,0.1936,2577.8,2577.5,0.7506]
[1750042682071,1.684,2578.1,2577.8,3.87913839]
[1750042682411,0.7979,2578.3,2577.9,0.03878897]
[1750042682591,0.7979,2578.3,2577.2,0.55]
[1750042682592,0.1936,2578.0,2577.6,0.1936]
[1750042682909,0.9851,2577.9,2577.4,6.6026]
[1750042685304,0.9851,2577.9,2577.4,0.1936]
[1750042685494,0.9851,2577.9,2577.4,6.6026]
[1750042685871,0.1936,2577.9,2577.4,10.48240525]
[1750042686066,0.1936,2578.0,2577.6,0.1936]
[1750042687593,0.1936,2578.0,2577.7,0.21797011]
[1750042687762,0.1936,2578.0,2577.6,0.1936]
[1750042689070,0.1936,2578.0,2577.7,0.2179471]
[1750042689265,0.1936,2578.0,2577.8,0.21794882]
[1750042689514,0.1936,2578.0,2577.6,0.1936]
[1750042689920,0.1936,2578.0,2577.7,0.21794794]
[1750042690223,0.1936,2578.0,2577.6,0.1936]
[1750042691510,0.1936,2578.0,2577.7,0.21802926]
[1750042691719,0.1936,2578.0,2577.6,0.1936]
[1750042692399,0.1936,2578.0,2577.7,0.21812793]
[1750042692606,0.1936,2578.0,2577.6,0.1936]
[1750042693193,0.1936,2578.0,2577.7,0.21812954]
[1750042693406,0.1936,2578.0,2577.8,0.21812861]
[1750042693726,0.1936,2578.0,2577.9,0.21814177]
[1750042693875,0.1936,2578.0,2577.6,0.1936]
[1750042694399,0.1936,2578.0,2577.6,4.07311877]
[1750042694776,0.1936,2578.0,2577.6,0.1936]
[1750042694976,0.1936,2578.0,2577.7,0.21819723]
[1750042695275,0.1936,2578.0,2577.6,0.1936]
[1750042695817,0.1936,2578.0,2577.7,0.21814878]
[1750042695971,0.1936,2578.0,2577.8,0.21813825]
[1750042696173,0.1936,2578.0,2577.9,0.21813888]
[1750042696418,0.1936,2578.0,2577.6,0.2323912]
[1750042697176,0.1936,2578.0,2577.7,0.21816631]
[1750042697532,0.1936,2578.0,2577.8,0.2181726]
[1750042697716,0.1936,2578.0,2577.6,0.2323912]
[1750042699425,0.1936,2578.0,2577.6,4.11194307]
[1750042699728,0.1936,2578.0,2577.6,0.2323912]
[1750042700321,0.1936,2578.0,2577.6,0.1936]
[1750042700484,0.1936,2578.0,2577.7,0.21818319]
[1750042700689,0.1936,2578.0,2577.6,0.1936]
[1750042701638,0.1936,2578.0,2577.6,4.11191547]
[1750042701861,0.8245,2578.1,2577.6,8.69179424]
[1750042702137,0.8245,2578.1,2577.7,0.1936]
[1750042702804,0.8245,2578.1,2577.8,0.21821202]
[1750042703004,0.8245,2578.1,2577.7,0.1936]
[1750042705151,0.8245,2578.1,2577.8,0.21821312]
[1750042705446,0.8245,2578.1,2577.7,0.1936]
[1750042705807,0.8245,2578.1,2577.7,6.6016]
[1750042706650,0.7842,2578.3,2577.8,8.69149426]
[1750042706849,0.9778,2578.3,2577.9,0.21816868]
[1750042707004,0.1936,2578.3,2578.0,4.77350922]
[1750042707353,0.93066679,2578.9,2578.0,4.77350922]
[1750042707354,0.7842,2578.9,2578.5,3.87821195]
[1750042707565,0.7842,2578.9,2578.7,4.77350922]
[1750042707921,0.7842,2578.9,2578.6,6.6016]
[1750042708122,0.7842,2578.9,2578.6,6.407]
[1750042708618,0.7842,2578.9,2578.6,6.63937622]
[1750042709006,0.7842,2578.9,2578.7,0.21803514]
[1750042709206,0.7842,2578.9,2578.6,6.6006]
[1750042709708,0.7842,2578.9,2578.7,0.21805904]
[1750042709945,0.7842,2578.9,2578.8,0.21809352]
[1750042710142,0.7842,2578.9,2578.8,0.21809764]
[1750042710345,0.7842,2578.9,2578.6,6.6006]
[1750042710961,0.7842,2578.9,2578.1,0.7708]
[1750042711109,0.785,2578.8,2578.2,0.21820138]
[1750042711304,11.684,2579.3,2577.1,3.82619344]
[1750042711305,0.7878,2578.4,2578.3,0.2182541]
[1750042711510,0.7878,2578.4,2578.3,0.21830113]
[1750042711709,0.7878,2578.4,2578.1,6.407]
[1750042712359,0.7878,2578.4,2578.2,6.406]
[1750042714841,0.7878,2578.4,2578.0,0.1936]
[1750042715045,0.7878,2578.4,2578.1,6.406]
[1750042715450,0.7878,2578.4,2578.2,6.406]
[1750042717663,0.7878,2578.4,2578.0,0.1936]
[1750042717829,0.7878,2578.4,2578.1,6.406]
[1750042718154,0.1936,2578.3,2578.0,6.406]
[1750042718350,0.1936,2578.3,2577.9,6.406]
[1750042719308,0.1936,2578.3,2577.8,0.1936]
[1750042719552,0.1936,2578.3,2577.9,6.406]
[1750042722575,0.1936,2578.3,2577.8,6.5996]
[1750042724484,0.1936,2578.3,2577.8,0.1936]
[1750042724639,0.1936,2578.3,2577.8,6.5996]
[1750042726947,0.1936,2578.3,2578.2,4.77350922]
[1750042727249,0.7878,2578.4,2578.0,4.96710922]
[1750042728253,0.7878,2578.4,2578.0,5.00589429]
[1750042728595,0.1936,2578.5,2578.0,5.79379429]
[1750042733700,0.8095,2578.9,2578.4,5.58040922]
[1750042733875,0.8095,2579.1,2578.6,4.77350922]
[1750042735002,0.8095,2579.1,2578.5,6.405]
[1750042735556,0.8095,2579.1,2578.6,4.81228473]
[1750042738083,0.765,2579.4,2578.8,9.42400221]
[1750042738284,0.765,2579.4,2578.9,0.03877232]
[1750042739127,5.53850922,2579.4,2578.5,10.0]
[1750042739308,5.53850922,2579.4,2578.8,6.404]
[1750042739309,0.763,2579.3,2578.8,6.404]
[1750042743787,0.1936,2579.1,2578.8,6.404]
[1750042744501,0.1936,2579.1,2578.7,6.403]
[1750042746490,0.1936,2579.1,2578.6,0.1936]
[1750042746701,0.1936,2579.1,2578.7,6.403]
[1750042753659,0.1936,2579.1,2578.6,0.1936]
[1750042753858,0.7813,2579.0,2578.2,4.42861575]
[1750042754167,0.1936,2578.6,2578.3,6.402]
[1750042754481,0.9749,2578.6,2578.4,6.402]
[1750042755966,0.9749,2578.6,2578.3,6.401]
[1750042756323,0.1936,2578.6,2578.3,6.401]
[1750042758971,0.1936,2578.6,2578.2,8.84577948]
[1750042759172,0.1936,2578.6,2578.3,6.401]
[1750042759876,0.8286,2579.0,2578.4,8.69053351]
[1750042760075,0.1936,2578.9,2578.4,8.84535098]
[1750042760424,0.1936,2578.9,2578.5,0.7974]
[1750042763059,0.1936,2578.9,2578.5,0.83617728]
[1750042763778,1.68,2579.2,2578.8,4.77350922]
[1750042763927,0.1936,2579.1,2578.8,4.77350922]
[1750042764645,0.1936,2579.1,2578.7,6.401]
[1750042765047,0.1936,2579.1,2578.7,10.27884923]
[1750042765670,0.1936,2579.1,2578.7,6.401]
[1750042765875,0.1936,2579.1,2578.7,10.2789088]
[1750042768461,0.1936,2579.1,2578.7,6.401]
[1750042768777,1.0169,2579.3,2578.8,4.11005238]
[1750042769847,1.0169,2579.3,2578.8,0.1936]
[1750042771337,1.0169,2579.3,2578.9,0.03877212]
[1750042771535,1.0169,2579.3,2578.8,0.1936]
[1750042771951,1.0169,2579.3,2578.9,0.55]
[1750042772151,2.6258,2579.5,2579.0,0.1936]
[1750042772348,2.88838,2579.5,2579.0,0.1936]
[1750042772538,0.9458,2579.2,2578.7,0.1936]
[1750042772763,0.1936,2579.0,2578.8,6.399]
[1750042772963,5.52570922,2578.9,2578.0,10.8148]
[1750042773162,0.1936,2578.7,2578.1,6.399]
[1750042773363,0.1936,2578.7,2578.2,0.1936]
[1750042773984,0.1936,2578.7,2578.2,0.23238252]
[1750042775092,0.7522,2578.8,2578.3,6.399]
[1750042775248,0.1936,2578.5,2578.3,6.399]
[1750042776053,0.818,2578.4,2578.0,0.1936]
[1750042776276,0.1936,2578.3,2577.8,10.1936]
[1750042776590,0.1936,2578.3,2578.0,6.399]
[1750042777487,0.1936,2578.3,2577.8,0.1936]
[1750042777691,0.1936,2578.3,2577.9,6.399]
[1750042778265,0.1936,2578.3,2577.8,0.1936]
[1750042778449,0.1936,2578.3,2577.9,6.399]
[1750042780799,0.1936,2578.3,2577.8,0.1936]
[1750042780972,0.1936,2578.3,2577.9,6.399]
[1750042782106,0.1936,2578.3,2578.0,3.87896497]
[1750042782306,0.818,2578.4,2578.1,0.1936]
[1750042784708,0.818,2578.4,2578.1,6.5926]
[1750042785486,0.818,2578.4,2578.1,6.63138389]
[1750042786586,0.818,2578.4,2578.1,6.5926]
[1750042800203,0.1936,2578.5,2578.1,6.5926]
[1750042800706,0.1936,2578.5,2578.1,6.63138377]
[1750042800902,0.8251,2578.9,2578.3,5.58980922]
[1750042801138,0.8251,2578.9,2578.1,6.43778377]
[1750042801139,4.77350922,2578.6,2577.8,0.8163]
[1750042801343,0.1936,2578.3,2577.9,6.5906]
[1750042801608,0.7511,2578.7,2578.3,4.42848207]
[1750042801806,2.60843799,2579.1,2578.4,11.13153489]
[1750042801807,0.1936,2578.9,2578.4,11.13153489]
[1750042802017,0.1936,2578.9,2578.4,7.408]
[1750042802222,0.7925,2579.3,2578.6,9.20147305]
[1750042802450,0.1936,2579.2,2578.9,3.87762224]
[1750042802604,1.95323835,2579.4,2579.0,6.397]
[1750042802807,1.95323835,2579.4,2579.0,6.5906]
[1750042803637,1.95323835,2579.4,2579.0,0.1936]
[1750042803837,1.95323835,2579.4,2578.5,0.1936]
[1750042803838,0.1936,2579.0,2578.5,0.1936]
[1750042804053,0.1936,2579.0,2578.7,6.397]
[1750042805173,0.766,2579.2,2578.8,0.03877732]
[1750042805345,0.766,2579.2,2578.8,0.23237732]
[1750042805874,0.1936,2579.3,2578.8,0.23237732]
[1750042806557,0.1936,2579.3,2578.8,0.78237732]
[1750042807674,0.1936,2579.3,2578.8,9.43364488]
[1750042807834,0.1936,2579.3,2578.8,9.39486756]
[1750042808031,1.16073835,2579.4,2579.0,0.55]
[1750042808345,1.16073835,2579.4,2579.1,6.62836809]
[1750042808563,1.15976872,2579.4,2579.1,6.62836809]
[1750042808962,1.15976872,2579.4,2579.1,7.42696809]
[1750042809971,1.15976872,2579.4,2579.2,5.32350922]
[1750042810144,1.15976872,2579.4,2579.3,0.1936]
[1750042810329,1.15976872,2579.4,2579.3,6.395]
[1750042811980,1.15976872,2579.4,2579.2,6.395]
[1750042814475,1.15976872,2579.4,2579.2,6.394]
[1750042816248,1.15976872,2579.4,2579.3,0.8108]
[1750042817789,1.15976872,2579.4,2579.2,6.43276682]
[1750042819754,1.15976872,2579.4,2579.2,10.30985564]
[1750042820060,1.15976872,2579.4,2579.2,10.27108882]
[1750042820261,1.15976872,2579.4,2579.2,6.394]
[1750042820576,1.15976872,2579.4,2579.2,6.43276677]
[1750042821682,1.15976872,2579.4,2578.4,0.7936]
[1750042821683,0.7556,2579.3,2578.4,0.7936]
[1750042821880,0.7556,2578.8,2578.0,0.7936]
[1750042822101,0.7556,2578.8,2578.1,6.43178261]
[1750042822556,0.7556,2578.8,2578.1,10.3106034]
[1750042822917,0.7556,2578.8,2578.2,8.65209146]
[1750042823198,0.7556,2578.8,2578.3,0.03878048]
[1750042823391,0.7556,2578.8,2578.3,0.55]
[1750042823760,0.7556,2578.8,2578.2,0.55]
[1750042823955,0.7556,2578.8,2578.2,4.4285426]
[1750042825081,0.7556,2578.8,2578.3,0.03877838]
[1750042825399,0.7556,2578.8,2578.3,3.91727931]
[1750042825911,1.676,2579.2,2578.4,8.65176973]
[1750042826198,3.50381657,2579.2,2578.5,6.43177598]
[1750042826399,1.676,2579.2,2578.5,6.43177598]
[1750042827014,0.8091,2579.1,2578.5,6.393]
[1750042828111,0.8091,2579.1,2578.2,10.7552]
[1750042828112,5.58260922,2579.1,2578.2,10.7552]
[1750042828312,4.77350922,2578.9,2578.3,6.943]
[1750042828488,0.8091,2578.8,2578.3,6.943]
[1750042829311,0.8091,2578.8,2578.4,6.393]
[1750042829680,0.8091,2578.8,2578.3,6.393]
[1750042830509,11.36736092,2578.8,2578.3,6.393]
[1750042831791,0.1936,2578.6,2578.3,6.393]
[1750042835330,0.1936,2578.6,2578.1,0.2323826]
[1750042835514,0.1936,2578.6,2578.2,6.393]
[1750042840689,0.1936,2578.6,2578.1,0.2323826]
[1750042840889,0.8039,2578.5,2578.2,6.393]
[1750042841430,1.676,2579.0,2578.2,6.393]
[1750042841431,0.8039,2578.7,2578.3,4.42850764]
[1750042841661,12.66350922,2579.3,2578.5,5.57320922]
[1750042841662,0.1936,2578.9,2578.5,5.57320922]
[1750042841803,0.7604,2579.1,2578.6,0.0387767]
[1750042842006,0.954,2579.1,2578.7,0.1936]
[1750042842245,5.82550922,2579.1,2578.3,0.55]
[1750042842445,0.1936,2578.9,2578.4,0.23237851]
[1750042843749,0.8086,2578.8,2578.4,0.1936]
[1750042844052,0.1936,2578.6,2578.2,6.62438213]
[1750042846864,0.1936,2578.6,2578.2,6.5856]
[1750042848358,0.1936,2578.6,2578.2,6.62438212]
[1750042848657,0.1936,2578.6,2578.2,10.50303178]
[1750042848811,0.1936,2578.6,2578.2,10.46424966]
[1750042849013,0.1936,2578.6,2578.2,6.5856]
[1750042849321,0.1936,2578.6,2578.2,6.62438211]
[1750042851313,0.1936,2578.6,2578.2,6.6243821]
[1750042853178,0.1936,2578.6,2578.2,6.5856]
[1750042853858,0.1936,2578.6,2578.2,6.6243821]
[1750042855371,0.1936,2578.6,2578.2,6.5856]
[1750042855589,0.1936,2578.6,2578.2,0.1936]
[1750042855789,4.77350922,2578.3,2577.7,0.8129]
[1750042855956,4.77350922,2578.3,2577.6,0.1936]
[1750042855957,0.1936,2578.0,2577.6,0.1936]
[1750042856159,4.77350922,2578.1,2577.3,0.8129]
[1750042856383,0.1936,2577.9,2577.4,0.1936]
[1750042856994,0.7569,2577.8,2577.2,6.391]
[1750042857153,0.1936,2577.6,2577.2,6.391]
[1750042858461,0.1936,2577.6,2577.1,0.1936]
[1750042858657,0.1936,2577.3,2577.1,6.391]
[1750042859058,0.8051,2577.4,2576.7,10.31780645]
[1750042859263,0.1936,2577.2,2576.7,10.51140645]
[1750042859475,0.1936,2577.2,2576.7,4.11940645]
[1750042859673,0.1936,2577.2,2576.7,10.51140645]
[1750042859879,0.1936,2577.2,2576.7,14.39233883]
[1750042860048,0.1936,2577.2,2576.7,10.51140645]
[1750042860649,0.1936,2577.2,2576.7,14.392333]
[1750042861289,0.1936,2577.2,2576.7,4.11940645]
[1750042861587,0.1936,2576.9,2576.6,6.392]
[1750042861896,0.7851,2577.1,2576.7,0.03880755]
[1750042862060,0.7851,2577.1,2576.6,6.5856]
[1750042862061,0.9787,2577.1,2576.6,6.5856]
[1750042862898,0.1936,2577.1,2576.7,0.03880529]
[1750042863294,0.1936,2577.1,2576.6,6.5856]
[1750042863973,0.1936,2577.1,2576.7,3.91965491]
[1750042864149,0.1936,2577.1,2576.7,0.03880423]
[1750042864553,0.19080948,2578.4,2576.8,6.14500922]
[1750042864554,0.7732,2577.5,2576.8,6.14500922]
[1750042864747,0.9668,2577.5,2577.1,0.1936]
[1750042865083,0.9668,2577.5,2577.1,0.23239865]
[1750042865084,0.1936,2577.5,2577.1,0.23239865]
[1750042865989,0.1936,2577.5,2577.1,0.1936]
[1750042868494,0.18545083,2577.5,2577.1,0.1936]
[1750042870098,0.1936,2577.3,2576.9,6.393]
[1750042872856,4.77350922,2577.1,2576.2,0.8316]
[1750042873088,4.77350922,2576.9,2576.2,0.8316]
[1750042873289,0.55369092,2576.8,2576.0,7.2246]
[1750042873452,6.44850922,2576.9,2576.0,7.2246]
[1750042874758,0.7634,2577.0,2576.2,5.60510922]
[1750042874977,1.675,2576.9,2576.3,0.03881132]
[1750042875196,1.675,2576.9,2576.2,7.2246]
[1750042875531,0.7634,2577.0,2576.2,11.99810922]
[1750042875731,1.675,2577.1,2576.4,4.77350922]
[1750042876091,1.675,2577.1,2576.4,0.03880966]
[1750042876803,1.675,2577.1,2576.4,3.92018668]
[1750042877331,0.7725,2577.2,2576.4,3.88137702]
[1750042877530,4.77350922,2576.7,2575.7,0.7774]
[1750042877743,10.8192,2576.6,2575.7,11.05281107]
[1750042878033,0.8192,2576.6,2575.7,7.1704]
[1750042878239,0.8192,2576.6,2575.8,0.55]
[1750042878735,10.8192,2576.6,2575.8,6.393]
[1750042878936,12.37847092,2576.6,2575.8,6.393]
[1750042879542,2.37847092,2576.6,2575.8,0.55]
[1750042879709,0.7731,2576.2,2575.7,0.7774]
[1750042879904,0.7731,2576.2,2575.2,4.77350922]
[1750042880104,10.7731,2576.2,2575.3,7.1547]
[1750042880405,0.7731,2576.2,2575.4,8.69518711]
[1750042880616,1.674,2576.2,2575.5,0.7607]
[1750042880857,1.674,2576.2,2575.6,0.55]
[1750042881759,1.674,2576.2,2575.5,0.7607]
[1750042881917,1.91897,2576.2,2575.5,0.7607]
[1750042882272,7.17064074,2575.9,2574.7,0.808]
[1750042882543,0.7953,2575.0,2573.8,0.808]
[1750042882856,1.8676,2574.9,2574.3,3.88440423]
[1750042883098,2.4693,2575.0,2574.5,0.1936]
[1750042883238,2.6629,2575.0,2574.5,0.1936]
[1750042884117,0.8272,2575.3,2574.6,0.84973684]
[1750042884322,0.1936,2575.2,2574.7,0.1936]
[1750042884631,0.1936,2575.2,2574.1,17.17064074]
[1750042884632,7.17064074,2574.9,2573.8,0.8109]
[1750042884848,0.8272,2574.8,2573.8,0.8109]
[1750042885157,1.674,2574.7,2573.8,0.8109]
[1750042885320,11.674,2574.7,2573.8,0.8109]
[1750042885525,12.05354263,2574.7,2573.8,0.8109]
[1750042885741,1.28807426,2574.6,2573.6,0.7576]
[1750042886049,0.7638,2574.5,2573.7,0.03884712]
[1750042886251,1.675,2574.4,2573.5,3.88566691]
[1750042886554,1.675,2574.4,2573.5,3.88571816]
[1750042886737,1.675,2574.4,2573.6,3.88560511]
[1750042886925,1.675,2574.4,2573.5,13.88572757]
[1750042887127,1.675,2574.4,2573.6,3.88560475]
[1750042887357,1.675,2574.4,2573.6,0.55]
[1750042887863,0.7638,2574.5,2573.6,0.03884877]
[1750042888065,1.675,2574.4,2574.1,3.8848482]
[1750042888356,1.675,2574.4,2574.0,3.88493606]
[1750042888734,1.675,2574.4,2574.0,0.55]
[1750042888911,1.675,2574.4,2574.0,4.4350013]
[1750042889260,1.675,2574.4,2574.1,3.8848407]
[1750042889466,1.675,2574.4,2574.0,4.4349483]
[1750042889756,1.675,2574.4,2574.1,3.8848457]
[1750042890311,1.675,2574.4,2574.0,3.88499218]
[1750042890555,1.675,2574.4,2574.1,3.92368582]
[1750042890754,1.675,2574.7,2574.1,3.88483933]
[1750042890963,0.8264,2574.8,2574.1,0.03884336]
[1750042891114,0.26948,2575.2,2574.3,0.8119]
[1750042891315,2.4769,2575.1,2574.4,3.92313553]
[1750042891510,2.4769,2575.1,2574.4,0.03883885]
[1750042891752,2.4769,2575.1,2574.3,0.8119]
[1750042891953,2.4769,2575.1,2574.3,4.69643672]
[1750042892158,2.4769,2575.1,2574.3,3.88453672]
[1750042892447,2.4769,2575.1,2574.3,3.88447556]
[1750042892812,1.675,2575.0,2574.4,0.03883773]
[1750042893026,1.675,2575.0,2574.5,3.88418389]
[1750042893237,1.675,2575.0,2574.5,3.88424846]
[1750042894159,7.96844074,2574.9,2573.0,4.07919392]
[1750042894393,0.7978,2574.8,2573.9,3.88502824]
[1750042894516,0.7978,2574.8,2573.8,3.88522967]
[1750042894871,0.1936,2574.4,2573.9,0.1936]
[1750042895425,0.8185,2574.3,2573.9,0.1936]
[1750042895860,17.98914074,2574.3,2573.9,0.1936]
[1750042896156,17.98914074,2574.3,2572.7,2.47253661]
[1750042896157,10.0,2574.1,2573.0,3.88643134]
[1750042896345,1.749,2574.0,2573.0,3.88643134]
[1750042896542,3.72281407,2574.0,2573.0,3.88643134]
[1750042897235,0.7988,2573.9,2573.0,3.88643134]
[1750042897430,0.7988,2573.9,2572.7,18.99353661]
[1750042897623,1.75,2573.8,2573.2,3.88612686]
[1750042897823,2.5488,2573.9,2573.2,3.88612686]
[1750042899014,0.7988,2573.9,2573.2,0.55]
[1750042899218,2.5488,2573.9,2573.4,4.43590362]
[1750042899452,1.75,2574.1,2573.1,0.55]
[1750042899629,1.75,2574.1,2573.5,3.88568302]
[1750042899835,1.75,2574.1,2573.6,0.03885031]
[1750042900250,1.75,2574.1,2573.7,3.88545673]
[1750042900453,1.75,2574.1,2573.8,3.88520389]
[1750042900697,1.75,2574.1,2573.9,3.88515127]
[1750042900988,1.75,2574.4,2573.8,0.0388476]
[1750042901140,1.75,2574.4,2573.7,4.43537138]
[1750042901648,1.75,2574.4,2573.9,3.88501456]
[1750042901826,1.75,2574.4,2574.0,0.03884605]
[1750042902227,1.75,2574.4,2573.9,3.88506633]
[1750042902459,0.7686,2574.5,2574.0,0.03884605]
[1750042903070,0.7686,2574.5,2573.8,3.88524037]
[1750042903268,0.7686,2574.5,2573.9,0.03884609]
[1750042903469,3.89036,2574.5,2573.8,3.88524037]
[1750042903776,2.14036,2574.5,2573.8,3.88524037]
[1750042903921,2.5186,2574.5,2573.9,3.88512305]
[1750042904125,2.5186,2574.5,2573.7,4.43545159]
[1750042904126,0.36332528,2574.4,2573.8,3.88529793]
[1750042904382,2.5186,2574.5,2573.9,0.03884609]
[1750042904526,2.5186,2574.5,2573.7,4.43539058]
[1750042904927,0.36323006,2574.4,2573.7,4.43539058]
[1750042905167,2.5186,2574.5,2573.7,0.55]
[1750042905371,0.65143948,2574.4,2573.7,0.55]
[1750042905566,0.28818301,2574.4,2573.7,0.55]
[1750042905989,0.1936,2574.3,2573.8,0.1936]
[1750042906192,7.17064074,2574.2,2573.1,3.88628359]
[1750042906357,0.1936,2573.8,2573.3,0.1936]
[1750042907246,0.8233,2573.7,2573.3,0.1936]
[1750042907691,0.8233,2573.7,2572.7,2.47253661]
[1750042907864,0.1936,2573.5,2573.0,0.1936]
[1750042908058,1.75,2573.5,2573.1,3.92521522]
[1750042908283,1.75,2573.5,2573.1,0.1936]
[1750042908490,1.75,2573.5,2573.0,3.88643864]
[1750042908491,2.02669,2573.5,2572.8,3.88678887]
[1750042908820,0.1936,2573.4,2572.9,0.1936]
[1750042909590,0.8128,2573.3,2572.7,6.35945717]
[1750042909796,0.1936,2573.1,2572.8,3.88681008]
[1750042910126,1.0064,2573.3,2572.8,4.08041008]
[1750042910615,1.0064,2573.3,2572.9,3.92552363]
[1750042910818,1.0064,2573.3,2572.9,3.88666092]
[1750042911144,1.0064,2573.3,2572.8,0.1936]
[1750042911145,1.0064,2573.3,2572.8,4.08034478]
[1750042911283,1.08844,2573.3,2572.7,2.47253661]
[1750042911622,0.1936,2573.2,2572.7,2.66613661]
[1750042912196,0.1936,2573.2,2572.7,6.55309214]
[1750042912410,0.1936,2573.2,2572.7,2.66613661]
[1750042912614,0.1936,2573.2,2572.7,6.55302849]
[1750042912782,0.1936,2573.2,2572.7,6.55308011]
[1750042912984,0.1936,2573.2,2572.9,3.88665671]
[1750042913687,0.1936,2573.2,2572.9,3.88661379]
[1750042914221,0.46924,2573.2,2572.7,2.66613661]
[1750042914536,0.1936,2573.1,2572.7,2.47253661]
[1750042915429,0.1936,2572.8,2572.7,2.47253661]
[1750042915850,0.9539,2572.8,2572.7,2.47253661]
[1750042916240,0.7603,2573.4,2572.8,0.55]
[1750042916440,0.9539,2573.7,2573.2,3.88613147]
[1750042916633,0.9539,2573.7,2573.3,0.03885628]
[1750042916948,0.9539,2573.7,2572.8,10.61333846]
[1750042916949,0.1936,2573.3,2572.8,10.61333846]
[1750042917253,0.7603,2573.2,2572.7,2.47253661]
[1750042917439,0.1936,2573.1,2572.7,6.39829889]
[1750042917759,0.1936,2573.1,2572.8,3.88672053]
[1750042918049,0.1936,2573.1,2572.8,3.88680513]
[1750042918250,0.1936,2573.1,2572.7,2.51140196]
[1750042918251,0.1936,2573.1,2572.7,2.47253661]
[1750042918953,0.1936,2573.1,2572.7,6.35949667]
[1750042919365,0.8309,2573.0,2572.7,2.47253661]
[1750042919655,2.5809,2573.0,2572.7,2.47253661]
[1750042919959,1.10835,2573.0,2572.7,2.47253661]
[1750042920338,0.8309,2573.0,2572.7,2.47253661]
[1750042921373,11.75,2573.3,2572.7,2.47253661]
[1750042921374,17.98914074,2572.8,2572.7,2.47253661]
[1750042921586,0.8185,2572.8,2572.7,2.47253661]
[1750042925519,0.7874,2573.2,2572.7,2.47253661]
[1750042925724,1.751,2573.1,2572.7,2.47253661]
[1750042925974,2.5384,2573.2,2572.7,2.47253661]
[1750042927268,0.7874,2573.2,2572.7,2.47253661]
[1750042927571,3.16334,2573.2,2572.7,2.47253661]
[1750042929331,0.1936,2573.1,2572.7,2.47253661]
[1750042931855,0.8319,2573.5,2572.8,0.03886615]
[1750042932041,0.1936,2573.3,2572.8,0.23246615]
[1750042932258,0.1936,2573.3,2572.9,0.7623]
[1750042932657,0.1936,2573.3,2572.9,4.64895292]
[1750042932861,0.1936,2573.3,2572.9,0.7623]
[1750042933561,11.22597619,2573.7,2573.0,0.55]
[1750042933780,11.22597619,2573.7,2573.1,0.1936]
[1750042933781,0.1936,2573.6,2573.1,0.1936]
[1750042934183,11.5344594,2573.7,2572.7,9.77283661]
[1750042934498,0.1936,2573.2,2572.8,0.1936]
[1750042934699,0.1936,2573.2,2572.8,0.23246343]
[1750042935493,0.1936,2573.2,2572.8,0.1936]
[1750042935658,0.1936,2573.2,2572.8,0.23246342]
[1750042935985,0.1936,2573.2,2572.8,0.1936]
[1750042936186,0.1936,2573.2,2572.8,0.23246342]
[1750042938696,0.1936,2573.2,2572.8,0.23246341]
[1750042939148,0.9991,2573.2,2572.8,0.23246341]
[1750042939351,0.1936,2573.1,2572.8,6.527]
[1750042940364,0.1936,2573.1,2572.8,10.41380556]
[1750042941003,0.1936,2573.1,2572.8,6.527]
[1750042941701,0.1936,2573.2,2572.8,6.7206]
[1750042942979,0.1936,2573.2,2572.8,10.60740952]
[1750042943174,0.1936,2573.2,2572.8,0.1936]
[1750042943476,0.1936,2573.1,2572.9,6.517]
[1750042945101,0.1936,2573.1,2572.9,10.40364146]